[Event "Oslo Chess Festival 2017"]
[Site "Oslo"]
[Date "2017.10.04"]
[Round "5"]
[White "Rishovd, Svein"]
[Black "Risting, Eivind Olav"]
[Result "0-1"]
[ECO "A58"]
[WhiteElo "2109"]
[BlackElo "2335"]
[Annotator "ChessBase"]
[PlyCount "84"]
[EventType "swiss"]
[EventCountry "NOR"]
[SourceTitle "playchess.com"]
[Source "ChessBase"]
[SourceQuality "1"]
[TimeControl "5400+30"]

1. d4 {[%emt 0:00:00]} Nf6 {[%emt 0:00:07]} 2. c4 {[%emt 0:00:04]} c5 {[%emt 0:00:05]} 3. d5 {[%emt 0:00:26]} b5 {[%emt 0:00:06]} 4. cxb5 {[%emt 0:00:09]} a6 {[%emt 0:00:05]} 5. bxa6 {[%emt 0:00:26]} g6 {[%emt 0:00:07]} 6. Nc3 {[%emt 0:00:29]} Bg7 {[%emt 0:00:38]} 7. e4 {[%emt 0:00:32]} O-O {[%emt 0:00:08]} 8. a7 {[%emt 0:01:23]} Rxa7 {[%emt 0:00:05]} 9. Nf3 {[%emt 0:00:12]} e6 {[%emt 0:00:15]} 10. Be2 {[%emt 0:00:43]} exd5 {[%emt 0:00:14]} 11. e5 {[%emt 0:01:52]} Ne4 {[%emt 0:03:03]} 12. Nxd5 {[%emt 0:00:24]} Qa5+ {[%emt 0:00:17]} 13. Nd2 {[%emt 0:00:20]} Nc6 {[%emt 0:17:33]} 14. O-O {[%emt 0:01:36]} Nxd2 {[%emt 0:01:30]} 15. Bxd2 {[%emt 0:00:35]} Qd8 {[%emt 0:00:28]} 16. Be3 {[%emt 0:26:19]} d6 {[%emt 0:04:15]} 17. exd6 {[%emt 0:01:53]} Qxd6 {[%emt 0:01:21]} 18. Nc3 {[%emt 0:05:36]} Qe7 {[%emt 0:10:39]} 19. Re1 {[%emt 0:14:01]} Be6 {[%emt 0:11:46]} 20. Qc1 {[%emt 0:01:54]} Nd4 {[%emt 0:04:45]} 21. Bxd4 {[%emt 0:05:01]} cxd4 {[%emt 0:01:19]} 22. Nb5 {[%emt 0:04:03]} Rxa2 {[%emt 0:03:33]} 23. Rxa2 {[%emt 0:03:13]} Bxa2 {[%emt 0:00:07]} 24. Bd3 {[%emt 0:15:02]} Qd7 {[%emt 0:03:41]} 25. Qc7 {[%emt 0:02:15]} Qxc7 {[%emt 0:05:35]} 26. Nxc7 {[%emt 0:00:02]} Rb8 {[%emt 0:00:41]} 27. Nb5 {[%emt 0:04:16]} Be6 {[%emt 0:03:15]} 28. Re2 {[%emt 0:00:54]} Bd7 {[%emt 0:02:12]} 29. Nd6 {[%emt 0:00:47]} Rb6 {[%emt 0:11:42]} 30. Nc4 {[%emt 0:01:05]} Rb3 {[%emt 0:00:26]} 31. Rd2 {[%emt 0:03:51]} Bb5 {[%emt 0:04:25]} 32. Bf1 {[%emt 0:00:06]} Rb4 {[%emt 0:01:15]} 33. Na3 {[%emt 0:02:55]} Bh6 {[%emt 0:04:11]} 34. Rd1 {[%emt 0:00:05]} Ba4 {[%emt 0:00:47]} 35. Rb1 {[%emt 0:04:11]} Bb3 {[%emt 0:00:36]} 36. Bd3 {[%emt 0:00:38]} Ba2 {[%emt 0:03:16]} 37. Nc2 {[%emt 0:00:01]} Rb3 {[%emt 0:00:44]} 38. Rd1 {[%emt 0:01:09]} Bg7 {[%emt 0:00:22]} 39. Bc4 {[%emt 0:00:43]} Rxb2 {[%emt 0:00:05]} 40. Bd3 {[%emt 0:00:51]} Bb3 {[%emt 0:00:50]} 41. Rd2 {[%emt 0:00:23]} Rb1+ {[%emt 0:00:28]} 42. Bf1 {[%emt 0:00:02]} Bc4 {[%emt 0:00:10]} 0-1

[Event "Oslo Chess Festival 2017"]
[Site "Oslo"]
[Date "2017.10.04"]
[Round "5"]
[White "Bentsen, Hakon"]
[Black "Maksimovic, Branimir"]
[Result "1-0"]
[ECO "C06"]
[WhiteElo "2071"]
[BlackElo "2343"]
[Annotator "ChessBase"]
[PlyCount "61"]
[EventType "swiss"]
[EventCountry "NOR"]
[SourceTitle "playchess.com"]
[Source "ChessBase"]
[SourceQuality "1"]
[TimeControl "5400+30"]

1. e4 {[%emt 0:00:03]} e6 {[%emt 0:00:03]} 2. d4 {[%emt 0:00:09]} d5 {[%emt 0:00:03]} 3. Nd2 {[%emt 0:00:07]} Nf6 {[%emt 0:01:02]} 4. e5 {[%emt 0:00:07]} Nfd7 {[%emt 0:00:04]} 5. Bd3 {[%emt 0:00:08]} c5 {[%emt 0:00:08]} 6. c3 {[%emt 0:00:04]} Nc6 {[%emt 0:00:05]} 7. Ne2 {[%emt 0:00:07]} cxd4 {[%emt 0:00:07]} 8. cxd4 {[%emt 0:00:05]} f6 {[%emt 0:00:07]} 9. exf6 {[%emt 0:00:07]} Nxf6 {[%emt 0:00:04]} 10. O-O {[%emt 0:00:31]} Bd6 {[%emt 0:00:05]} 11. Nf3 {[%emt 0:00:07]} Qc7 {[%emt 0:00:54]} 12. Nc3 {[%emt 0:02:16]} a6 {[%emt 0:00:04]} 13. Bd2 {[%emt 0:00:05]} O-O {[%emt 0:00:12]} 14. Rc1 {[%emt 0:00:11]} Bd7 {[%emt 0:00:35]} 15. Re1 {[%emt 0:02:18]} Rae8 {[%emt 0:45:35]} 16. Na4 {[%emt 0:06:24]} Qb8 {[%emt 0:29:38]} 17. Nc5 {[%emt 0:07:57]} e5 {[%emt 0:03:48]} 18. dxe5 {[%emt 0:00:21]} Nxe5 {[%emt 0:00:20]} 19. Nxe5 {[%emt 0:00:27]} Bxe5 {[%emt 0:00:11]} 20. Nxd7 {[%emt 0:00:14]} Nxd7 {[%emt 0:01:42]} 21. g3 {[%emt 0:05:20]} Bd4 {[%emt 0:02:34]} 22. Bxh7+ {[%emt 0:02:24]} Kh8 {[%emt 0:00:10]} 23. Bf4 {[%emt 0:01:17]} Rxe1+ {[%emt 0:02:46]} 24. Qxe1 {[%emt 0:00:05]} Rxf4 {[%emt 0:00:25]} 25. gxf4 {[%emt 0:01:48]} Kxh7 {[%emt 0:00:07]} 26. Qd2 {[%emt 0:01:59]} Qa7 {[%emt 0:01:34]} 27. Qd3+ {[%emt 0:01:42]} Kg8 {[%emt 0:00:44]} 28. Qf5 {[%emt 0:01:56]} Nf6 {[%emt 0:06:19]} 29. Rc8+ {[%emt 0:00:42]} Kf7 {[%emt 0:00:04]} 30. Rc7+ {[%emt 0:00:05]} Kf8 {[%emt 0:01:45]} 31. Qg6 {[%emt 0:00:39]} 1-0

[Event "Oslo Chess Festival 2017"]
[Site "Oslo"]
[Date "2017.10.04"]
[Round "5"]
[White "Taksrud, Vidar"]
[Black "Tryggestad, Andreas Garberg"]
[Result "0-1"]
[ECO "D02"]
[WhiteElo "1983"]
[BlackElo "2250"]
[Annotator "ChessBase"]
[PlyCount "112"]
[EventType "swiss"]
[EventCountry "NOR"]
[SourceTitle "playchess.com"]
[Source "ChessBase"]
[SourceQuality "1"]
[TimeControl "5400+30"]

1. Nf3 {[%emt 0:00:26]} Nf6 {[%emt 0:00:13]} 2. d4 {[%emt 0:00:42]} g6 {[%emt 0:00:12]} 3. g3 {[%emt 0:00:12]} Bg7 {[%emt 0:00:08]} 4. Bg2 {[%emt 0:00:15]} d5 {[%emt 0:00:04]} 5. O-O {[%emt 0:00:13]} O-O {[%emt 0:00:11]} 6. Bf4 {[%emt 0:01:33]} c6 {[%emt 0:00:58]} 7. Nc3 {[%emt 0:02:21]} b5 {[%emt 0:00:43]} 8. a4 {[%emt 0:02:25]} b4 {[%emt 0:00:57]} 9. Na2 {[%emt 0:00:08]} a5 {[%emt 0:00:10]} 10. c3 {[%emt 0:00:16]} bxc3 {[%emt 0:05:55]} 11. bxc3 {[%emt 0:01:43]} Nbd7 {[%emt 0:01:11]} 12. Ne5 {[%emt 0:02:40]} Nxe5 {[%emt 0:07:40]} 13. Bxe5 {[%emt 0:00:20]} Ba6 {[%emt 0:00:06]} 14. Nc1 {[%emt 0:02:07]} Ne4 {[%emt 0:01:04]} 15. Bxg7 {[%emt 0:00:41]} Kxg7 {[%emt 0:00:24]} 16. Bxe4 {[%emt 0:04:28]} dxe4 {[%emt 0:00:02]} 17. Nb3 {[%emt 0:00:17]} Qd5 {[%emt 0:00:29]} 18. Nc5 {[%emt 0:01:00]} h5 {[%emt 0:29:20]} 19. Qc2 {[%emt 0:19:23]} h4 {[%emt 0:06:55]} 20. Qxe4 {[%emt 0:01:31]} Qxe4 {[%emt 0:00:45]} 21. Nxe4 {[%emt 0:00:09]} Bxe2 {[%emt 0:00:04]} 22. Rfe1 {[%emt 0:00:09]} Bc4 {[%emt 0:00:23]} 23. Nd2 {[%emt 0:02:45]} Be6 {[%emt 0:00:05]} 24. gxh4 {[%emt 0:00:14]} Rh8 {[%emt 0:01:10]} 25. Re4 {[%emt 0:02:39]} Rab8 {[%emt 0:00:55]} 26. Re5 {[%emt 0:02:21]} Rb2 {[%emt 0:01:41]} 27. Rd1 {[%emt 0:10:27]} Rc2 {[%emt 0:10:23]} 28. Rxa5 {[%emt 0:08:01]} Rxc3 {[%emt 0:00:33]} 29. Ne4 {[%emt 0:01:29]} Ra3 {[%emt 0:00:08]} 30. h5 {[%emt 0:04:28]} Bd5 {[%emt 0:01:14]} 31. Ng3 {[%emt 0:00:59]} gxh5 {[%emt 0:05:49]} 32. Nf5+ {[%emt 0:02:41]} Kf6 {[%emt 0:00:08]} 33. Ne3 {[%emt 0:00:06]} e6 {[%emt 0:00:09]} 34. Rc1 {[%emt 0:06:15]} Rb8 {[%emt 0:01:31]} 35. Nxd5+ {[%emt 0:00:33]} cxd5 {[%emt 0:00:13]} 36. Ra7 {[%emt 0:00:22]} Rb4 {[%emt 0:04:27]} 37. a5 {[%emt 0:03:39]} Rxd4 {[%emt 0:00:28]} 38. Rcc7 {[%emt 0:00:23]} Rg4+ {[%emt 0:02:15]} 39. Kf1 {[%emt 0:00:08]} Ke5 {[%emt 0:01:30]} 40. Rxf7 {[%emt 0:00:53]} Ra1+ {[%emt 0:03:26]} 41. Ke2 {[%emt 0:00:09]} Rg2 {[%emt 0:00:53]} 42. Kf3 {[%emt 0:02:26]} Rxh2 {[%emt 0:01:02]} 43. Kg3 {[%emt 0:00:56]} Rhh1 {[%emt 0:00:11]} 44. Ra6 {[%emt 0:04:21]} h4+ {[%emt 0:01:40]} 45. Kg4 {[%emt 0:00:21]} Rhg1+ {[%emt 0:00:37]} 46. Kh3 {[%emt 0:00:48]} Rg6 {[%emt 0:00:38]} 47. Kh2 {[%emt 0:01:19]} h3 {[%emt 0:00:05]} 48. Rf3 {[%emt 0:00:58]} d4 {[%emt 0:02:05]} 49. Ra8 {[%emt 0:01:25]} Ke4 {[%emt 0:02:14]} 50. Rxh3 {[%emt 0:02:00]} Ra2 {[%emt 0:00:47]} 51. Rf8 {[%emt 0:00:40]} Rxa5 {[%emt 0:00:20]} 52. Rfh8 {[%emt 0:05:03]} Rag5 {[%emt 0:00:37]} 53. R8h4+ {[%emt 0:00:20]} Kd5 {[%emt 0:00:02]} 54. Rd3 {[%emt 0:00:28]} e5 {[%emt 0:00:31]} 55. Kh3 {[%emt 0:00:45]} Rg1 {[%emt 0:00:06]} 56. f3 {[%emt 0:01:10]} Rh1# {[%emt 0:00:02]} 0-1

[Event "Oslo Chess Festival 2017"]
[Site "Oslo"]
[Date "2017.10.02"]
[Round "5"]
[White "Enersen, Eirik S"]
[Black "Myhrvold, Rune"]
[Result "0-1"]
[ECO "A20"]
[WhiteElo "1911"]
[BlackElo "2243"]
[Annotator "NA"]
[PlyCount "60"]
[EventType "swiss"]
[EventCountry "NOR"]
[SourceTitle "playchess.com"]
[Source "ChessBase"]
[SourceQuality "1"]
[TimeControl "5400+30"]

1. c4 {[%emt 0:00:01]} e5 {[%emt 0:17:05]} 2. g3 {[%emt 0:00:09]} c6 {[%emt 0:02:28]} 3. Bg2 {[%emt 0:01:03]} d5 {[%emt 0:00:07]} 4. d3 {[%emt 0:07:29]} dxc4 {[%emt 0:03:06]} 5. dxc4 {[%emt 0:00:14]} Qxd1+ {[%emt 0:00:06]} 6. Kxd1 {[%emt 0:00:03]} Nf6 {[%emt 0:00:22]} 7. Nf3 {[%emt 0:02:34]} Ng4 {[%emt 0:01:05]} 8. Ke1 {[%emt 0:05:35]} Bc5 {[%emt 0:02:45]} 9. e3 {[%emt 0:01:31]} e4 {[%emt 0:02:04]} 10. Nd4 {[%emt 0:05:04]} f5 {[%emt 0:00:12]} 11. Bh3 {[%emt 0:04:58]} Ne5 {[%emt 0:01:57]} 12. Bxf5 {[%emt 0:01:33]} Bxf5 {[%emt 0:01:20]} 13. Nxf5 {[%emt 0:00:17]} O-O {[%emt 0:01:10]} 14. Nd4 $2 {[%emt 0:08:07]} (14. g4 {was worth a try.}) 14... Nd3+ {[%emt 0:00:29]} 15. Ke2 {[%emt 0:01:40]} Rxf2+ {[%emt 0:00:39]} 16. Kd1 {[%emt 0:00:06]} Nd7 {[%emt 0:05:43]} 17. Nc3 {[%emt 0:05:17]} Re8 $19 {[%emt 0:13:30]} 18. b3 {[%emt 0:10:13]} Nf6 {[%emt 0:25:28]} 19. Bd2 {[%emt 0:08:54]} Bxd4 {[%emt 0:06:15]} 20. exd4 {[%emt 0:01:13]} Rg2 {[%emt 0:01:10]} 21. Re1 {[%emt 0:10:20]} Nxe1 {[%emt 0:00:48]} 22. Bxe1 {[%emt 0:00:02]} Ng4 {[%emt 0:02:36]} 23. Ne2 {[%emt 0:01:57]} Rxh2 {[%emt 0:01:55]} 24. Rc1 {[%emt 0:04:36]} Rf8 {[%emt 0:00:24]} 25. Kd2 {[%emt 0:01:27]} Rf3 {[%emt 0:00:55]} 26. Kd1 {[%emt 0:01:56]} Rd3+ {[%emt 0:00:58]} 27. Bd2 {[%emt 0:00:08]} e3 {[%emt 0:01:36]} 28. Rc2 {[%emt 0:00:43]} Rh1+ {[%emt 0:00:30]} 29. Ng1 {[%emt 0:00:01]} Rxg1+ {[%emt 0:01:16]} 30. Ke2 {[%emt 0:00:07]} exd2 {[%emt 0:00:43]} 0-1

[Event "Oslo Chess Festival 2017"]
[Site "Oslo"]
[Date "2017.10.04"]
[Round "5"]
[White "Wright, Haakon"]
[Black "Nordquelle, Daniel"]
[Result "0-1"]
[ECO "A45"]
[WhiteElo "1739"]
[BlackElo "2203"]
[Annotator "ChessBase"]
[PlyCount "52"]
[EventType "swiss"]
[EventCountry "NOR"]
[SourceTitle "playchess.com"]
[Source "ChessBase"]
[SourceQuality "1"]
[TimeControl "5400+30"]

1. d4 {[%emt 0:00:00]} Nf6 {[%emt 0:00:41]} 2. Bf4 {[%emt 0:00:06]} c5 {[%emt 0:01:15]} 3. d5 {[%emt 0:01:06]} b5 {[%emt 0:00:36]} 4. a4 {[%emt 0:05:57]} Qb6 {[%emt 0:07:03]} 5. axb5 {[%emt 0:03:45]} Qxb5 {[%emt 0:00:16]} 6. Nd2 {[%emt 0:03:46]} Qb4 {[%emt 0:09:29]} 7. e4 {[%emt 0:05:44]} Nxe4 {[%emt 0:03:29]} 8. c4 {[%emt 0:06:09]} Nxd2 {[%emt 0:01:08]} 9. Qxd2 {[%emt 0:00:44]} Qxd2+ {[%emt 0:00:56]} 10. Kxd2 {[%emt 0:01:31]} d6 {[%emt 0:01:21]} 11. Bd3 {[%emt 0:01:07]} g6 {[%emt 0:00:54]} 12. Ne2 {[%emt 0:00:44]} Nd7 {[%emt 0:03:57]} 13. Rhb1 {[%emt 0:05:37]} Bg7 {[%emt 0:01:02]} 14. Nc3 {[%emt 0:01:16]} a6 {[%emt 0:02:01]} 15. b4 {[%emt 0:09:30]} cxb4 {[%emt 0:00:41]} 16. Rxb4 {[%emt 0:00:43]} Nc5 {[%emt 0:00:16]} 17. Bc2 {[%emt 0:03:22]} O-O {[%emt 0:03:16]} 18. Be3 {[%emt 0:00:59]} Rd8 {[%emt 0:01:20]} 19. Bxc5 {[%emt 0:02:04]} dxc5 {[%emt 0:00:05]} 20. Rb6 {[%emt 0:02:31]} e6 {[%emt 0:01:46]} 21. Be4 {[%emt 0:07:11]} Ra7 {[%emt 0:08:07]} 22. Ra5 {[%emt 0:06:09]} Be5 {[%emt 0:01:51]} 23. Rb1 {[%emt 0:08:49]} Bd4 {[%emt 0:02:04]} 24. f4 {[%emt 0:05:35]} Re7 {[%emt 0:00:52]} 25. Kc2 {[%emt 0:05:47]} exd5 {[%emt 0:00:38]} 26. Bxd5 {[%emt 0:00:38]} Bf5+ {[%emt 0:00:14]} 0-1